[Event "Spring Chess Classic A 2024"]
[Site "Saint Louis"]
[Date "2024.04.14"]
[Round "4.3"]
[White "Aryan Chopra"]
[Black "Yoo, Christopher Woojin"]
[Result "1/2-1/2"]
[ECO "B48"]
[WhiteElo "2630"]
[BlackElo "2583"]
[Annotator "TA"]
[PlyCount "60"]
[EventDate "2024.04.11"]
[EventCountry "USA"]
[SourceTitle "playchess.com"]
[Source "ChessBase"]
[SourceQuality "1"]
[TimeControl "7200+30"]

{[%evp 11,60,37,43,31,19,23,56,58,66,65,67,35,56,59,47,9,12,5,16,24,14,0,0,0,0,0,9,9,14,0,13,0,0,0,50,0,0,0,0,0,0,0,0,0,0,0,0,0,0,0,0]} 1. e4 {[%emt 0:00:04]} c5 {[%emt 0:00:04]} 2. Nf3 {[%emt 0:00:09]} Nc6 {[%emt 0:00:12]} 3. d4 {[%emt 0:00:26]} cxd4 {[%emt 0:00:04]} 4. Nxd4 {[%emt 0:00:05]} e6 {[%emt 0:00:05]} 5. Nc3 {[%emt 0:00:09]} Qc7 {[%emt 0:00:05]} 6. Be3 {[%emt 0:00:21]} a6 {[%emt 0:00:03]} 7. Qf3 {[%emt 0:00:41]} b5 {[%emt 0:00:05]} 8. Qg3 {[%emt 0:05:21]} Bd6 {[%emt 0:00:06]} 9. f4 $1 {[%emt 0:02:30] White is slightly better.} (9. Qxg7 $2 Be5 10. Qg4 Nxd4 $19 (10... Bxd4 $2 11. Bxd4 Nxd4 12. O-O-O $17)) 9... Nxd4 {[%emt 0:00:05]} 10. Bxd4 {[%emt 0:00:13]} Ne7 $1 {[%emt 0:00:03][%cal Bg8e7,Be7f5,Bf5e3][%mdl 32]} 11. e5 {[%emt 0:03:50]} (11. Bxg7 $2 {is the wrong capture.} Rg8 12. e5 Bb4 $19) (11. Qxg7 $5 Ng6 12. e5 $11) 11... Bc5 {[%emt 0:00:04]} 12. Bxc5 {[%emt 0:06:37]} ({Reject} 12. Qxg7 Rg8 13. Qxh7 Bxd4 $15) 12... Qxc5 {[%emt 0:00:06]} 13. O-O-O {[%emt 0:00:21][%cal Oc3e4] [#] Black must now prevent Ne4!} Nf5 {[%emt 0:00:14]} 14. Qd3 {[%emt 0:00:50] Black should prevent Ne4.} Qe3+ {[%emt 0:00:20]} 15. Qxe3 {[%emt 0:03:26]} Nxe3 {[%emt 0:00:05]} 16. Re1 {[%emt 0:13:48][%cal Bd1e1,Be1e4,Be4f4][%mdl 32]} Nxf1 {[%emt 0:05:30]} 17. Rhxf1 {[%emt 0:00:11]} Bb7 {[%emt 0:00:25]} 18. Ne4 {[%emt 0:00:14]} Bxe4 {[%emt 0:01:59]} 19. Rxe4 $11 {[%emt 0:00:05][%mdl 4096] Endgame. KRR-KRR} Ke7 {[%emt 0:04:41]} 20. a4 {[%emt 0:02:27]} f6 {[%emt 0:07:23]} 21. Kd2 {[%emt 0:05:19]} fxe5 {[%emt 0:05:13]} 22. axb5 {[%emt 0:00:51]} exf4 {[%emt 0:04:01]} (22... Rhb8 $11) 23. Rexf4 {[%emt 0:04:25]} (23. bxa6 $1 $14 f3 (23... Rxa6 24. Rexf4 Rd6+ 25. Ke3 $16) 24. Rxf3 (24. gxf3 Rxa6 25. Rh4 g6 $14) 24... Rxa6 25. Rg4) 23... axb5 {[%emt 0:00:18] The position is equal.} 24. Rf7+ {[%emt 0:00:06]} Kd6 {[%emt 0:00:17]} 25. R1f3 {[%emt 0:08:24]} Rad8 {[%emt 0:00:30]} 26. Rd3+ {[%emt 0:03:35]} Kc6 {[%emt 0:01:36]} 27. Rc3+ {[%emt 0:00:15]} Kd6 {[%emt 0:00:10]} 28. Rd3+ {[%emt 0:00:07]} Kc6 {[%emt 0:00:05]} 29. Rc3+ {[%emt 0:00:04]} Kd6 {[%emt 0:00:05]} 30. Rd3+ {[%emt 0:00:16]} Kc6 {[%emt 0:00:01] Weighted Error Value: White=0.08 (flawless) /Black=0.06 (flawless) .  Mistake:       	White=1     	Black=1      Inaccurate:     	White=2     	Black=1      OK:         	White=5     	Black=13     Best:        	---       	Black=2      Strong:       	White=1     	Black=1} 1/2-1/2

[Event "Spring Chess Classic A 2024"]
[Site "Saint Louis"]
[Date "2024.04.15"]
[Round "4.4"]
[White "Mishra, Abhimanyu"]
[Black "Ter-Sahakyan, Samvel"]
[Result "1/2-1/2"]
[ECO "E11"]
[WhiteElo "2626"]
[BlackElo "2644"]
[Annotator "RC"]
[PlyCount "84"]
[EventDate "2024.04.11"]
[EventCountry "USA"]
[SourceTitle "playchess.com"]
[Source "ChessBase"]
[SourceQuality "1"]
[TimeControl "7200+30"]

1. d4 {[%emt 0:00:02]} Nf6 {[%emt 0:00:12]} 2. c4 {[%emt 0:00:07]} e6 {[%emt 0:00:04]} 3. Nf3 {[%emt 0:00:10]} Bb4+ {[%emt 0:04:29]} 4. Nbd2 {[%emt 0:00:49]} a5 {[%emt 0:02:07]} 5. a3 {[%emt 0:03:22]} Be7 {[%emt 0:00:06]} 6. e4 {[%emt 0:02:33]} d5 {[%emt 0:00:06]} 7. Bd3 {[%emt 0:08:06]} c5 {[%emt 0:05:32]} 8. e5 {[%emt 0:07:56]} Nfd7 {[%emt 0:00:26]} 9. O-O {[%emt 0:02:07]} Nc6 {[%emt 0:00:17]} 10. Re1 {[%emt 0:08:04]} O-O {[%emt 0:12:38]} 11. Bc2 {[%emt 0:00:30]} Qb6 {[%emt 0:05:28]} 12. cxd5 {[%emt 0:17:07]} exd5 {[%emt 0:00:20]} 13. dxc5 {[%emt 0:07:10]} Nxc5 {[%emt 0:01:37]} 14. Nf1 {[%emt 0:05:54]} Rd8 {[%emt 0:10:56]} 15. Ne3 {[%emt 0:12:40]} d4 {[%emt 0:14:26]} 16. Nf5 {[%emt 0:01:41]} d3 {[%emt 0:20:53]} 17. Nxe7+ {[%emt 0:00:41]} Nxe7 {[%emt 0:00:11]} 18. Be3 {[%emt 0:03:42]} Bf5 {[%emt 0:05:35]} 19. Bb3 {[%emt 0:05:26]} Rac8 {[%emt 0:02:25]} 20. Rc1 {[%emt 0:03:17]} Qxb3 {[%emt 0:09:01]} 21. Bxc5 {[%emt 0:00:55]} Qxd1 {[%emt 0:01:20]} 22. Rexd1 {[%emt 0:00:06]} Nd5 {[%emt 0:00:40]} 23. Nh4 {[%emt 0:18:52]} Be4 {[%emt 0:14:57]} 24. Rc4 {[%emt 0:09:43]} f5 {[%emt 0:00:05]} 25. exf6 {[%emt 0:05:18]} Nxf6 {[%emt 0:00:10]} 26. Rd4 {[%emt 0:00:17]} Rxd4 {[%emt 0:09:43]} 27. Bxd4 {[%emt 0:00:04]} h5 {[%emt 0:02:17]} 28. Nf3 {[%emt 0:01:08]} Nd5 {[%emt 0:01:35]} 29. Ne1 {[%emt 0:04:09]} Rc4 {[%emt 0:02:26]} 30. Be5 {[%emt 0:00:42]} Bg6 {[%emt 0:03:55]} 31. Kf1 {[%emt 0:00:47]} Be8 {[%emt 0:01:10]} 32. Nxd3 {[%emt 0:02:09]} Bb5 {[%emt 0:00:04]} 33. Kg1 {[%emt 0:00:37]} Re4 {[%emt 0:00:41]} 34. f3 {[%emt 0:00:41]} Re2 {[%emt 0:00:55]} 35. Nf4 {[%emt 0:00:05]} Nxf4 {[%emt 0:00:11]} 36. Bxf4 {[%emt 0:00:01]} Rxb2 {[%emt 0:00:10]} 37. Rd5 {[%emt 0:01:13]} Rb1+ {[%emt 0:00:58]} 38. Kf2 {[%emt 0:00:03]} Rb2+ {[%emt 0:00:03]} 39. Kg1 {[%emt 0:00:40]} Rb1+ {[%emt 0:00:04]} 40. Kf2 {[%emt 0:00:03]} Rb2+ {[%emt 0:00:02]} 41. Ke3 {[%emt 0:01:23]} Rb3+ {[%emt 0:00:58]} 42. Kf2 {[%emt 0:00:04]} Rb2+ {[%emt 0:00:10]} 1/2-1/2

[Event "Spring Chess Classic A 2024"]
[Site "Saint Louis"]
[Date "2024.04.15"]
[Round "4.5"]
[White "Hakobyan, Aram"]
[Black "Bok, Benjamin"]
[Result "1-0"]
[ECO "D15"]
[WhiteElo "2619"]
[BlackElo "2620"]
[Annotator "TA"]
[PlyCount "121"]
[EventDate "2024.04.11"]
[EventCountry "USA"]
[SourceTitle "playchess.com"]
[Source "ChessBase"]
[SourceQuality "1"]
[TimeControl "7200+30"]

{[%evp 10,121,16,-47,-47,-39,-27,-38,-33,-36,-41,-39,-28,-38,-25,-31,-27,-31,0,0,0,-7,0,0,0,-11,-10,-22,-27,-23,-7,0,0,0,0,0,0,0,0,0,0,0,70,52,36,59,93,0,47,60,99,75,212,107,156,160,164,162,130,134,136,143,147,122,192,196,172,119,232,223,247,237,220,228,213,47,47,47,94,86,47,32,41,32,41,32,32,32,68,51,983,1005,987,1001,943,933,905,840,749,522,813,797,859,841,823,823,812,696,629,401,337,379,5073,4141]} 1. d4 {[%emt 0:00:03]} d5 {[%emt 0:07:28]} 2. c4 {[%emt 0:00:15]} c6 {[%emt 0:00:12]} 3. Nf3 {[%emt 0:00:38]} Nf6 {[%emt 0:00:15]} 4. Nc3 {[%emt 0:00:13]} dxc4 {[%emt 0:00:04]} 5. e4 {[%emt 0:04:23]} b5 {[%emt 0:01:21]} 6. a4 {[%emt 0:00:07]} (6. Be2 $11) 6... b4 $15 {[%emt 0:16:05]} 7. Na2 {[%emt 0:00:32]} Nxe4 {[%emt 0:02:07] White must now prevent ...b3.} 8. Bxc4 {[%emt 0:00:13]} e6 {[%emt 0:03:02] Black is slightly better.} 9. O-O {[%emt 0:00:37]} Be7 {[%emt 0:08:23]} 10. Re1 {[%emt 0:00:52]} Nf6 {[%emt 0:04:33]} 11. Ne5 {[%emt 0:00:52]} O-O {[%emt 0:22:35]} 12. Bg5 {[%emt 0:00:47]} a5 {[%emt 0:05:49]} 13. Nc1 {[%emt 0:02:16]} Nd5 {[%emt 0:13:08][%cal Bf6d5,Bd5e7,Be7g6][%mdl 32]} 14. Bxe7 {[%emt 0:00:42]} Nxe7 {[%emt 0:08:40]} 15. Qg4 {[%emt 0:13:22]} Ng6 {[%emt 0:16:49]} 16. Ncd3 {[%emt 0:13:58]} Nd7 {[%emt 0:00:16]} 17. Rad1 {[%emt 0:34:53][%cal Oe5f7]} (17. Nxf7 $5 Rxf7 18. Qxe6 $11) 17... Ndxe5 {[%emt 0:05:49]} 18. dxe5 {[%emt 0:02:49]} Qe7 {[%emt 0:00:10]} 19. Nf4 {[%emt 0:09:46]} Rd8 {[%emt 0:12:18]} 20. Nxg6 {[%emt 0:01:42]} hxg6 {[%emt 0:00:04]} 21. Rxd8+ {[%emt 0:02:10]} Qxd8 {[%emt 0:00:00]} 22. Rd1 {[%emt 0:00:01][%cal Be1d1,Bd1d6,Bd6e6,Be6g6,Bg6g4,Bg4c4][%mdl 32]} Qe7 {[%emt 0:00:51]} 23. Rd6 {[%emt 0:01:12][%cal Og4d4]} Ba6 {[%emt 0:01:22]} 24. Bb3 {[%emt 0:09:07][%cal Rd6e6]} c5 {[%emt 0:00:36]} 25. Rxe6 {[%emt 0:00:26]} Qd7 {[%emt 0:00:19]} (25... fxe6 $2 26. Bxe6+ $18) (25... Qc7 $1 $11 26. Qe4 (26. Rxg6 Qxe5 27. h3 c4 $11) 26... Bb7) 26. Rxg6 {[%emt 0:01:51]} Qxg4 {[%emt 0:00:13]} 27. Rxg4 $14 {[%emt 0:00:01][%mdl 4096] Endgame. KRB-KRB} Rd8 {[%emt 0:00:57][%cal Oc5c4] Strongly threatening ...c4!} 28. h3 {[%emt 0:01:42]} ({White should try} 28. h4 $16) 28... Rd3 {[%emt 0:00:33]} (28... Be2 $1 $11 29. Re4 (29. Rf4 g5 $11) 29... Bd1) 29. Bc4 $1 {[%emt 0:03:07]} Bxc4 {[%emt 0:00:06]} 30. Rxc4 {[%emt 0:00:03] KR-KR} Rd1+ {[%emt 0:00:30]} 31. Kh2 {[%emt 0:00:01]} Rd5 {[%emt 0:00:14]} 32. f4 {[%emt 0:00:18]} Kf8 {[%emt 0:00:33]} 33. Kg3 {[%emt 0:00:12]} Ke7 {[%emt 0:00:23]} 34. Kf3 {[%emt 0:00:13]} Kd7 {[%emt 0:01:11]} 35. Ke2 {[%emt 0:03:10]} Kc6 {[%emt 0:00:07]} 36. h4 {[%emt 0:01:32]} g6 {[%emt 0:00:13] [#]} (36... Rd8 $16 37. b3 f6) 37. g3 $1 $18 {[%emt 0:00:42]} Rd7 {[%emt 0:01:12]} 38. Rc2 {[%emt 0:03:59]} (38. Rc1 $18) 38... Re7 {[%emt 0:00:20]} (38... Rd4 $16 {was necessary.}) 39. Ke3 {[%emt 0:02:49]} f6 {[%emt 0:00:19][%cal Bf7f6,Bf6f5][%mdl 32]} 40. Ke4 {[%emt 0:01:53]} f5+ {[%emt 0:00:50]} 41. Ke3 {[%emt 0:00:17]} Rd7 {[%emt 0:00:04]} 42. b3 $2 {[%emt 0:03:59]} (42. g4 $18 {aiming for h5.} fxg4 43. Rg2) 42... Rd1 $14 {[%emt 0:00:38]} 43. Rd2 {[%emt 0:00:20]} Rxd2 {[%emt 0:00:50]} 44. Kxd2 {[%emt 0:00:01] KP-KP} Kd5 {[%emt 0:00:28]} 45. Kd3 {[%emt 0:00:53]} c4+ $1 {[%emt 0:00:03]} 46. bxc4+ {[%emt 0:00:07]} Ke6 {[%emt 0:00:45]} 47. Kd4 {[%emt 0:00:13]} Ke7 {[%emt 0:00:41]} 48. c5 {[%emt 0:00:15] And now c6 would win.} Kd7 {[%emt 0:00:32]} 49. Kc4 {[%emt 0:00:58]} (49. Ke3 $5) 49... Ke6 $2 {[%emt 0:00:24][%mdl 8192]} (49... Kd8 $14) 50. c6 $18 {[%emt 0:00:39]} Ke7 {[%emt 0:00:02]} 51. Kd3 {[%emt 0:00:24]} Ke6 {[%emt 0:00:04]} 52. Kd2 {[%emt 0:02:03]} (52. Kc4 Ke7 53. Kd3 Ke6 $16) 52... Ke7 {[%emt 0:00:01]} 53. Ke2 {[%emt 0:00:29]} Ke6 {[%emt 0:00:01]} 54. g4 {[%emt 0:06:20]} fxg4 {[%emt 0:00:12] [#]} 55. h5 $1 {[%emt 0:00:10][%mdl 512]} b3 {[%emt 0:00:42]} 56. hxg6 {[%emt 0:00:33] White threatens g7 and mate.} b2 {[%emt 0:00:06]} 57. c7 {[%emt 0:02:49]} Kd7 {[%emt 0:02:41]} 58. c8=Q+ {[%emt 0:00:18]} Kxc8 {[%emt 0:00:04]} 59. g7 {[%emt 0:00:04]} b1=Q {[%emt 0:00:04] ( -> ...Qh7)} 60. g8=Q+ {[%emt 0:00:06]} Kc7 $2 {[%emt 0:01:09]} (60... Kb7 61. Qd5+ (61. Qxg4 Qe4+ 62. Kf1 Qxa4 $16) 61... Kb6) 61. Qc4+ {[%emt 0:00:13] Weighted Error Value: White=0.22 (precise) /Black=0.15 (very precise) .  Loses game:     	---       	Black=1      Missed win:     	White=1     	---        Mistake:       	White=2     	Black=5      Inaccurate:     	White=1     	Black=4      OK:         	White=17    	Black=13     Best:        	White=6     	Black=6      Strong:       	White=2     	Black=1} ({Weaker is} 61. Qxg4 Qe4+ 62. Kf2 Qd4+ 63. Kg3 Qxa4 $14) 1-0

[Event "Spring Chess Classic A 2024"]
[Site "Saint Louis"]
[Date "2024.04.16"]
[Round "5.1"]
[White "Bok, Benjamin"]
[Black "Mendonca, Leon Luke"]
[Result "0-1"]
[ECO "E08"]
[WhiteElo "2620"]
[BlackElo "2626"]
[Annotator "RC"]
[PlyCount "84"]
[EventDate "2024.04.11"]
[EventCountry "USA"]
[SourceTitle "playchess.com"]
[Source "ChessBase"]
[SourceQuality "1"]
[TimeControl "7200+30"]

1. d4 {[%emt 0:06:14]} Nf6 {[%emt 0:00:08]} 2. c4 {[%emt 0:00:09]} e6 {[%emt 0:00:11]} 3. Nf3 {[%emt 0:00:11]} d5 {[%emt 0:00:36]} 4. g3 {[%emt 0:00:06]} Bb4+ {[%emt 0:00:40]} 5. Bd2 {[%emt 0:00:08]} Be7 {[%emt 0:00:18]} 6. Bg2 {[%emt 0:00:10]} O-O {[%emt 0:00:10]} 7. O-O {[%emt 0:00:06]} c6 {[%emt 0:00:17]} 8. Qc2 {[%emt 0:00:09]} Nbd7 {[%emt 0:00:17]} 9. Bf4 {[%emt 0:01:21]} a5 {[%emt 0:03:44]} 10. Rd1 {[%emt 0:00:29]} h6 {[%emt 0:00:29]} 11. Ne5 {[%emt 0:11:47]} a4 {[%emt 0:02:04]} 12. Nc3 {[%emt 0:12:29]} a3 {[%emt 0:00:55]} 13. b3 {[%emt 0:01:38]} g5 {[%emt 0:01:29]} 14. Nxd7 {[%emt 0:08:56]} Nxd7 {[%emt 0:00:31]} 15. Bd2 {[%emt 0:05:02]} f5 {[%emt 0:00:28]} 16. f3 {[%emt 0:01:46]} Nf6 {[%emt 0:27:09]} 17. Be1 {[%emt 0:00:24]} f4 {[%emt 0:32:22]} 18. Bf2 {[%emt 0:28:47]} Nh5 {[%emt 0:19:02]} 19. e4 {[%emt 0:06:03]} fxe3 {[%emt 0:00:50]} 20. Bxe3 {[%emt 0:01:39]} Ng7 {[%emt 0:00:20]} 21. Bf2 {[%emt 0:04:22]} Bd6 {[%emt 0:03:50]} 22. Na4 {[%emt 0:04:48]} b5 {[%emt 0:11:42]} 23. cxb5 {[%emt 0:05:24]} cxb5 {[%emt 0:00:15]} 24. Nc5 {[%emt 0:00:01]} Ra7 {[%emt 0:00:43]} 25. Nd3 {[%emt 0:11:52]} Nf5 {[%emt 0:04:38]} 26. Rac1 {[%emt 0:02:40]} h5 {[%emt 0:00:55]} 27. Ne5 {[%emt 0:01:32]} Rg7 {[%emt 0:03:57]} 28. Qe2 {[%emt 0:03:00]} b4 {[%emt 0:06:01]} 29. Rc2 {[%emt 0:00:34]} Bb7 {[%emt 0:01:21]} 30. Rdc1 {[%emt 0:01:29]} Qf6 {[%emt 0:00:49]} 31. Bh3 {[%emt 0:07:40]} Bxe5 {[%emt 0:02:15]} 32. dxe5 {[%emt 0:03:03]} Qg6 {[%emt 0:00:09]} 33. Rc7 {[%emt 0:00:46]} d4 {[%emt 0:00:16]} 34. Bg2 {[%emt 0:00:35]} Rff7 {[%emt 0:03:45]} 35. Rxf7 {[%emt 0:01:51]} Rxf7 {[%emt 0:00:01]} 36. Qd3 {[%emt 0:00:47]} Kg7 {[%emt 0:01:22]} 37. Bxd4 {[%emt 0:00:29]} g4 {[%emt 0:01:40]} 38. fxg4 {[%emt 0:00:18]} Qxg4 {[%emt 0:00:04]} 39. Bxb7 {[%emt 0:00:44]} Nxd4 {[%emt 0:00:04]} 40. Rc4 {[%emt 0:00:28]} Qe2 {[%emt 0:01:06]} 41. Qxe2 {[%emt 0:00:32]} Nxe2+ {[%emt 0:00:02]} 42. Kg2 {[%emt 0:00:09]} Rxb7 {[%emt 0:00:01]} 0-1

[Event "Spring Chess Classic A 2024"]
[Site "Saint Louis"]
[Date "2024.04.16"]
[Round "5.2"]
[White "Ter-Sahakyan, Samvel"]
[Black "Hakobyan, Aram"]
[Result "1-0"]
[ECO "C78"]
[WhiteElo "2644"]
[BlackElo "2619"]
[Annotator "RC"]
[PlyCount "79"]
[EventDate "2024.04.11"]
[EventCountry "USA"]
[SourceTitle "playchess.com"]
[Source "ChessBase"]
[SourceQuality "1"]
[TimeControl "7200+30"]

1. e4 {[%emt 0:00:05]} e5 {[%emt 0:00:10]} 2. Nf3 {[%emt 0:00:06]} Nc6 {[%emt 0:00:11]} 3. Bb5 {[%emt 0:00:09]} a6 {[%emt 0:00:09]} 4. Ba4 {[%emt 0:00:05]} Nf6 {[%emt 0:00:25]} 5. d3 {[%emt 0:03:59]} Bc5 {[%emt 0:00:23]} 6. O-O {[%emt 0:06:15]} b5 {[%emt 0:00:12]} 7. Bb3 {[%emt 0:00:06]} d6 {[%emt 0:00:15]} 8. a4 {[%emt 0:02:50]} b4 {[%emt 0:05:12]} 9. c3 {[%emt 0:07:24]} O-O {[%emt 0:00:12]} 10. Bg5 {[%emt 0:02:37]} h6 {[%emt 0:04:38]} 11. Bh4 {[%emt 0:12:50]} Rb8 {[%emt 0:01:35]} 12. Nbd2 {[%emt 0:01:06]} Ba7 {[%emt 0:05:49]} 13. a5 {[%emt 0:02:31]} g5 {[%emt 0:07:05]} 14. Bg3 {[%emt 0:00:29]} Kh8 {[%emt 0:09:47]} 15. Re1 {[%emt 0:04:13]} Nh7 {[%emt 0:03:16]} 16. Ba4 {[%emt 0:32:45]} Ne7 {[%emt 0:03:18]} 17. d4 {[%emt 0:01:27]} bxc3 {[%emt 0:01:53]} 18. bxc3 {[%emt 0:00:18]} f5 {[%emt 0:38:17]} 19. exf5 {[%emt 0:05:35]} exd4 {[%emt 0:01:54]} 20. Nxd4 {[%emt 0:06:00]} Bxd4 {[%emt 0:00:18]} 21. cxd4 {[%emt 0:00:15]} Nxf5 {[%emt 0:00:10]} 22. d5 {[%emt 0:08:14]} Rb4 {[%emt 0:08:34]} 23. Ra3 {[%emt 0:08:24]} Qf6 {[%emt 0:03:52]} 24. Ne4 {[%emt 0:02:13]} Qg7 {[%emt 0:08:53]} 25. Bc2 {[%emt 0:00:48]} Rd4 {[%emt 0:02:22]} 26. Rd3 {[%emt 0:01:57]} Bb7 {[%emt 0:05:55]} 27. f3 {[%emt 0:05:44]} Rxd3 {[%emt 0:11:07]} 28. Qxd3 {[%emt 0:00:07]} Nxg3 {[%emt 0:03:17]} 29. Nxg3 {[%emt 0:03:12]} Nf6 {[%emt 0:00:13]} 30. Nf5 {[%emt 0:03:09]} Qf7 {[%emt 0:00:10]} 31. Qc3 {[%emt 0:02:32]} Qxd5 {[%emt 0:03:34]} 32. Ne7 {[%emt 0:00:28]} Qc5+ {[%emt 0:00:07]} 33. Qxc5 {[%emt 0:00:04]} dxc5 {[%emt 0:00:04]} 34. Ng6+ {[%emt 0:01:03]} Kg7 {[%emt 0:00:01]} 35. Nxf8 {[%emt 0:00:06]} Kxf8 {[%emt 0:00:04]} 36. Bd3 {[%emt 0:00:50]} Ne8 {[%emt 0:00:22]} 37. Re5 {[%emt 0:00:36]} c6 {[%emt 0:01:16]} 38. h4 {[%emt 0:00:30]} gxh4 {[%emt 0:00:09]} 39. Rxc5 {[%emt 0:00:19]} Nf6 {[%emt 0:00:42]} 40. Bxa6 {[%emt 0:00:38]} 1-0

[Event "Spring Chess Classic A 2024"]
[Site "Saint Louis"]
[Date "2024.04.16"]
[Round "5.3"]
[White "Yoo, Christopher Woojin"]
[Black "Mishra, Abhimanyu"]
[Result "1/2-1/2"]
[ECO "C78"]
[WhiteElo "2583"]
[BlackElo "2626"]
[Annotator "RC"]
[PlyCount "186"]
[EventDate "2024.04.11"]
[EventCountry "USA"]
[SourceTitle "playchess.com"]
[Source "ChessBase"]
[SourceQuality "1"]
[TimeControl "7200+30"]

1. e4 {[%emt 0:00:07]} e5 {[%emt 0:00:02]} 2. Nf3 {[%emt 0:00:17]} Nc6 {[%emt 0:00:06]} 3. Bb5 {[%emt 0:00:12]} a6 {[%emt 0:00:12]} 4. Ba4 {[%emt 0:00:03]} Nf6 {[%emt 0:00:11]} 5. O-O {[%emt 0:00:05]} b5 {[%emt 0:00:09]} 6. Bb3 {[%emt 0:00:02]} Bc5 {[%emt 0:00:18]} 7. c3 {[%emt 0:00:32]} d6 {[%emt 0:00:15]} 8. d4 {[%emt 0:00:08]} Bb6 {[%emt 0:00:16]} 9. a4 {[%emt 0:00:30]} Rb8 {[%emt 0:00:33]} 10. a5 {[%emt 0:01:21]} Ba7 {[%emt 0:00:25]} 11. h3 {[%emt 0:01:49]} Bb7 {[%emt 0:01:16]} 12. Be3 {[%emt 0:03:15]} Nxe4 {[%emt 0:02:08]} 13. d5 {[%emt 0:01:15]} Bxe3 {[%emt 0:00:48]} 14. dxc6 {[%emt 0:00:03]} Nxf2 {[%emt 0:00:23]} 15. Qe2 {[%emt 0:02:21]} Nxh3+ {[%emt 0:00:56]} 16. Kh1 {[%emt 0:00:14]} Nf2+ {[%emt 0:00:08]} 17. Rxf2 {[%emt 0:00:07]} Bxf2 {[%emt 0:00:04]} 18. Qxf2 {[%emt 0:00:09]} Bxc6 {[%emt 0:00:08]} 19. Nxe5 {[%emt 0:00:48]} Bxg2+ {[%emt 0:00:17]} 20. Kg1 {[%emt 0:01:28]} Qf6 {[%emt 0:00:11]} 21. Nxf7 {[%emt 0:03:50]} Qxf2+ {[%emt 0:00:35]} 22. Kxf2 {[%emt 0:00:04]} Rf8 {[%emt 0:00:07]} 23. Kxg2 {[%emt 0:00:07]} Rxf7 {[%emt 0:00:04]} 24. Bxf7+ {[%emt 0:00:06]} Kxf7 {[%emt 0:00:03]} 25. Nd2 {[%emt 0:03:04]} b4 {[%emt 0:01:24]} 26. c4 {[%emt 0:03:53]} Re8 {[%emt 0:01:40]} 27. Kf3 {[%emt 0:02:17]} g5 {[%emt 0:19:34]} 28. c5 {[%emt 0:04:40]} dxc5 {[%emt 0:22:53]} 29. Ne4 {[%emt 0:02:07]} Re5 {[%emt 0:07:59]} 30. Rc1 {[%emt 0:01:00]} Ke6 {[%emt 0:09:24]} 31. Nxc5+ {[%emt 0:04:37]} Kd6 {[%emt 0:06:39]} 32. Nxa6 {[%emt 0:02:00]} Rxa5 {[%emt 0:01:47]} 33. Nxb4 {[%emt 0:00:11]} Rf5+ {[%emt 0:16:08]} 34. Ke3 {[%emt 0:02:26]} Re5+ {[%emt 0:02:14]} 35. Kd2 {[%emt 0:02:20]} Rb5 {[%emt 0:01:22]} 36. Rc6+ {[%emt 0:05:33]} Kd7 {[%emt 0:01:29]} 37. Rc4 {[%emt 0:00:15]} h5 {[%emt 0:02:13]} 38. Nd3 {[%emt 0:00:21]} Kd6 {[%emt 0:03:38]} 39. Ke3 {[%emt 0:09:06]} h4 {[%emt 0:14:25]} 40. b4 {[%emt 0:03:05]} h3 {[%emt 0:03:01]} 41. Kf3 {[%emt 0:02:05]} Rd5 {[%emt 0:00:46]} 42. Nc5 {[%emt 0:02:00]} Rf5+ {[%emt 0:03:02]} 43. Kg3 {[%emt 0:03:01]} Rf4 {[%emt 0:00:23]} 44. Rc2 {[%emt 0:02:50]} Rxb4 {[%emt 0:00:20]} 45. Kxh3 {[%emt 0:00:05]} Kd5 {[%emt 0:00:45]} 46. Na6 {[%emt 0:00:58]} Rc4 {[%emt 0:01:23]} 47. Nxc7+ {[%emt 0:00:10]} Kd4 {[%emt 0:00:04]} 48. Ne6+ {[%emt 0:00:56]} Kd5 {[%emt 0:00:23]} 49. Re2 {[%emt 0:00:27]} Re4 {[%emt 0:00:14]} 50. Nc7+ {[%emt 0:00:08]} Ke5 {[%emt 0:00:06]} 51. Rc2 {[%emt 0:00:17]} Rb4 {[%emt 0:00:30]} 52. Rc6 {[%emt 0:00:20]} Rd4 {[%emt 0:00:41]} 53. Kg3 {[%emt 0:00:17]} Ke4 {[%emt 0:00:40]} 54. Kg4 {[%emt 0:00:18]} Kd3+ {[%emt 0:00:26]} 55. Kxg5 {[%emt 0:00:07]} Rc4 {[%emt 0:00:13]} 56. Rd6+ {[%emt 0:00:08]} Ke4 {[%emt 0:00:22]} 57. Ne8 {[%emt 0:00:28]} Rc5+ {[%emt 0:00:21]} 58. Kg4 {[%emt 0:00:10]} Ke5 {[%emt 0:00:17]} 59. Ra6 {[%emt 0:00:12]} Rc1 {[%emt 0:00:35]} 60. Ra5+ {[%emt 0:00:07]} Kd4 {[%emt 0:00:21]} 61. Nd6 {[%emt 0:00:08]} Rg1+ {[%emt 0:00:20]} 62. Kf3 {[%emt 0:00:07]} Rf1+ {[%emt 0:00:10]} 63. Ke2 {[%emt 0:00:04]} Rh1 {[%emt 0:01:28]} 64. Nf5+ {[%emt 0:00:12]} Kc4 {[%emt 0:00:10]} 65. Ne3+ {[%emt 0:00:04]} Kd4 {[%emt 0:00:38]} 66. Ra4+ {[%emt 0:00:33]} Ke5 {[%emt 0:00:20]} 67. Kd3 {[%emt 0:00:04]} Rh3 {[%emt 0:00:26]} 68. Re4+ {[%emt 0:00:11]} Kd6 {[%emt 0:00:22]} 69. Kd4 {[%emt 0:00:04]} Rh5 {[%emt 0:00:25]} 70. Rg4 {[%emt 0:00:06]} Ke6 {[%emt 0:00:39]} 71. Rg6+ {[%emt 0:00:04]} Kf7 {[%emt 0:00:13]} 72. Ra6 {[%emt 0:00:04]} Rh1 {[%emt 0:00:37]} 73. Nc4 {[%emt 0:00:16]} Rd1+ {[%emt 0:00:20]} 74. Kc5 {[%emt 0:00:10]} Rc1 {[%emt 0:00:22]} 75. Rh6 {[%emt 0:00:15]} Ke7 {[%emt 0:00:35]} 76. Rh2 {[%emt 0:00:45]} Ke6 {[%emt 0:01:32]} 77. Re2+ {[%emt 0:00:23]} Kf6 {[%emt 0:00:20]} 78. Kd5 {[%emt 0:00:06]} Rd1+ {[%emt 0:01:04]} 79. Nd2 {[%emt 0:00:04]} Ra1 {[%emt 0:00:28]} 80. Ne4+ {[%emt 0:00:04]} Kf5 {[%emt 0:00:25]} 81. Rf2+ {[%emt 0:00:08]} Kg4 {[%emt 0:00:11]} 82. Nc3 {[%emt 0:01:44]} Ra8 {[%emt 0:01:07]} 83. Ne4 {[%emt 0:00:29]} Ra1 {[%emt 0:00:41]} 84. Rf6 {[%emt 0:01:22]} Ra5+ {[%emt 0:00:31]} 85. Ke6 {[%emt 0:00:06]} Ra6+ {[%emt 0:00:21]} 86. Nd6 {[%emt 0:00:05]} Kg3 {[%emt 0:00:24]} 87. Kd5 {[%emt 0:00:07]} Ra5+ {[%emt 0:00:05]} 88. Kd4 {[%emt 0:00:03]} Ra4+ {[%emt 0:00:12]} 89. Ke3 {[%emt 0:00:04]} Ra3+ {[%emt 0:00:12]} 90. Ke4 {[%emt 0:00:02]} Ra4+ {[%emt 0:00:09]} 91. Nc4 {[%emt 0:00:04]} Rxc4+ {[%emt 0:00:11]} 92. Kd5 {[%emt 0:00:02]} Rf4 {[%emt 0:00:11]} 93. Rxf4 {[%emt 0:00:04]} Kxf4 {[%emt 0:00:04]} 1/2-1/2